[Event "Niedersachsen Jubilaeumsturnier Open A 2"]
[Site "Wolfsburg"]
[Date "2024.11.15"]
[Round "1.22"]
[White "Woelk, Marvin"]
[Black "Magin, Jesse"]
[Result "0-1"]
[ECO "B06"]
[WhiteElo "1965"]
[BlackElo "1818"]
[Annotator "RC"]
[PlyCount "64"]
[EventDate "2024.11.15"]
[EventCountry "GER"]
[SourceTitle "playchess.com"]
[Source "ChessBase"]
[SourceQuality "1"]
[TimeControl "5400+30"]

1. e4 {[%emt 0:00:03]} g6 {[%emt 0:00:58]} 2. d4 {[%emt 0:00:08]} Bg7 {[%emt 0:00:04]} 3. Nc3 {[%emt 0:00:07]} d6 {[%emt 0:00:20]} 4. Be3 {[%emt 0:00:26]} a6 {[%emt 0:00:10]} 5. Qd2 {[%emt 0:00:44]} b5 {[%emt 0:00:36]} 6. Bd3 {[%emt 0:02:21]} Nd7 {[%emt 0:02:07]} 7. a4 {[%emt 0:05:13]} b4 {[%emt 0:02:11]} 8. Nce2 {[%emt 0:01:42]} a5 {[%emt 0:02:50]} 9. Nf3 {[%emt 0:02:25]} Bb7 {[%emt 0:01:13]} 10. O-O {[%emt 0:03:10]} h6 {[%emt 0:16:19]} 11. c3 {[%emt 0:08:40]} bxc3 {[%emt 0:07:59]} 12. Nxc3 {[%emt 0:05:13]} Ngf6 {[%emt 0:02:34]} 13. e5 {[%emt 0:04:14]} dxe5 {[%emt 0:13:52]} 14. dxe5 {[%emt 0:01:43]} Ng4 {[%emt 0:00:47]} 15. e6 {[%emt 0:01:05]} Nde5 {[%emt 0:00:10]} 16. exf7+ {[%emt 0:04:08]} Kxf7 {[%emt 0:06:42]} 17. Nxe5+ {[%emt 0:01:58]} Nxe5 {[%emt 0:00:21]} 18. Be2 {[%emt 0:02:35]} Ba6 {[%emt 0:08:12]} 19. Qc2 {[%emt 0:04:07]} Bxe2 {[%emt 0:01:51]} 20. Qxe2 {[%emt 0:01:27]} Qd3 {[%emt 0:00:44]} 21. Qxd3 {[%emt 0:06:46]} Nxd3 {[%emt 0:00:19]} 22. Nb5 {[%emt 0:02:18]} Nxb2 {[%emt 0:03:30]} 23. Bd4 {[%emt 0:03:06]} Bxd4 {[%emt 0:04:15]} 24. Nxd4 {[%emt 0:00:10]} c5 {[%emt 0:01:27]} 25. Nf3 {[%emt 0:01:29]} Kf6 {[%emt 0:08:39]} 26. Rfc1 {[%emt 0:03:31]} Nd3 {[%emt 0:01:13]} 27. Rc3 {[%emt 0:01:33]} Rhd8 {[%emt 0:01:21]} 28. Nd2 {[%emt 0:00:53]} Rd5 {[%emt 0:04:42]} 29. Nc4 {[%emt 0:06:24]} Nf4 {[%emt 0:05:39]} 30. Kf1 {[%emt 0:02:33]} Rad8 {[%emt 0:00:11]} 31. Ne3 {[%emt 0:01:34]} Rd2 {[%emt 0:02:27]} 32. Nc4 {[%emt 0:07:16]} Rd1+ {[%emt 0:00:19]} 0-1

[Event "Niedersachsen Jubilaeumsturnier Open A 2"]
[Site "Wolfsburg"]
[Date "2024.11.15"]
[Round "1.23"]
[White "Zhang, Onno"]
[Black "Reins, Henning"]
[Result "1-0"]
[ECO "B01"]
[WhiteElo "1801"]
[BlackElo "1954"]
[Annotator "RC"]
[PlyCount "43"]
[EventDate "2024.11.15"]
[EventCountry "GER"]
[SourceTitle "playchess.com"]
[Source "ChessBase"]
[SourceQuality "1"]
[TimeControl "5400+30"]

1. e4 {[%emt 0:00:05]} d5 {[%emt 0:00:12]} 2. exd5 {[%emt 0:00:20]} Nf6 {[%emt 0:00:14]} 3. c4 {[%emt 0:00:21]} e6 {[%emt 0:00:12]} 4. dxe6 {[%emt 0:00:19]} Bxe6 {[%emt 0:00:10]} 5. Nf3 {[%emt 0:02:17]} Nc6 {[%emt 0:01:56]} 6. Be2 {[%emt 0:11:04]} Bc5 {[%emt 0:03:14]} 7. Nc3 {[%emt 0:01:40]} Qe7 {[%emt 0:11:36]} 8. O-O {[%emt 0:06:57]} O-O {[%emt 0:03:01]} 9. d4 {[%emt 0:10:42]} Rad8 {[%emt 0:15:41]} 10. Be3 {[%emt 0:03:07]} Bg4 {[%emt 0:07:06]} 11. Nd5 {[%emt 0:32:30]} Nxd5 {[%emt 0:01:34]} 12. cxd5 {[%emt 0:02:16]} Rxd5 {[%emt 0:44:11]} 13. Qb3 {[%emt 0:00:52]} Nxd4 {[%emt 0:05:53]} 14. Bxd4 {[%emt 0:08:15]} Bxf3 {[%emt 0:00:46]} 15. Bxc5 {[%emt 0:01:18]} Qxe2 {[%emt 0:01:31]} 16. Bxf8 {[%emt 0:02:08]} Rg5 {[%emt 0:00:41]} 17. g3 {[%emt 0:00:29]} Bd5 {[%emt 0:00:24]} 18. Qc3 {[%emt 0:04:03]} Qh5 {[%emt 0:00:32]} 19. f3 {[%emt 0:07:57]} Qh3 {[%emt 0:00:23]} 20. Qd2 {[%emt 0:00:43]} Rf5 {[%emt 0:00:39]} 21. Bb4 {[%emt 0:01:23]} h5 {[%emt 0:00:08]} 22. Qg2 {[%emt 0:02:44]} 1-0

[Event "Niedersachsen Jubilaeumsturnier Open A 2"]
[Site "Wolfsburg"]
[Date "2024.11.15"]
[Round "1.24"]
[White "Scheffner, Jarno"]
[Black "Krueger, Moritz"]
[Result "0-1"]
[ECO "C01"]
[WhiteElo "1953"]
[BlackElo "1788"]
[Annotator "RC"]
[PlyCount "74"]
[EventDate "2024.11.15"]
[EventCountry "GER"]
[SourceTitle "playchess.com"]
[Source "ChessBase"]
[SourceQuality "1"]
[TimeControl "5400+30"]

1. e4 {[%emt 0:00:08]} e6 {[%emt 0:00:22]} 2. d4 {[%emt 0:00:27]} d5 {[%emt 0:00:20]} 3. exd5 {[%emt 0:00:10]} exd5 {[%emt 0:00:21]} 4. c4 {[%emt 0:00:08]} Nf6 {[%emt 0:00:33]} 5. Nc3 {[%emt 0:00:17]} Nc6 {[%emt 0:00:54]} 6. cxd5 {[%emt 0:05:06]} Nxd5 {[%emt 0:00:13]} 7. Nf3 {[%emt 0:00:29]} Be7 {[%emt 0:00:26]} 8. Bd3 {[%emt 0:00:36]} Bg4 {[%emt 0:00:30]} 9. O-O {[%emt 0:00:50]} O-O {[%emt 0:02:59]} 10. Re1 {[%emt 0:04:27]} Bf6 {[%emt 0:01:05]} 11. Be4 {[%emt 0:03:07]} Nde7 {[%emt 0:03:13]} 12. d5 {[%emt 0:09:33]} Nd4 {[%emt 0:00:15]} 13. Qd3 {[%emt 0:00:46]} Bxf3 {[%emt 0:00:31]} 14. gxf3 {[%emt 0:00:48]} Ng6 {[%emt 0:01:24]} 15. f4 {[%emt 0:01:59]} c5 {[%emt 0:02:20]} 16. Bd2 {[%emt 0:07:28]} Qd6 {[%emt 0:01:25]} 17. Bh1 {[%emt 0:05:09]} Nxf4 {[%emt 0:01:36]} 18. Qg3 {[%emt 0:00:06]} Bg5 {[%emt 0:01:27]} 19. Re4 {[%emt 0:12:38]} Nh3+ {[%emt 0:02:57]} 20. Qxh3 {[%emt 0:00:04]} Bxd2 {[%emt 0:00:15]} 21. Rh4 {[%emt 0:00:13]} Bxc3 {[%emt 0:01:19]} 22. bxc3 {[%emt 0:00:36]} Ne2+ {[%emt 0:00:25]} 23. Kf1 {[%emt 0:00:26]} Qa6 {[%emt 0:01:56]} 24. c4 {[%emt 0:00:13]} Nd4 {[%emt 0:00:07]} 25. Rc1 {[%emt 0:11:40]} h6 {[%emt 0:02:26]} 26. Be4 {[%emt 0:01:12]} Qxa2 {[%emt 0:01:44]} 27. Rxh6 {[%emt 0:01:18]} gxh6 {[%emt 0:01:40]} 28. Qg3+ {[%emt 0:10:37]} Kh8 {[%emt 0:00:22]} 29. Qe5+ {[%emt 0:00:27]} f6 {[%emt 0:00:07]} 30. Qe7 {[%emt 0:02:08]} f5 {[%emt 0:01:19]} 31. Qe5+ {[%emt 0:00:21]} Kg8 {[%emt 0:00:14]} 32. Qg3+ {[%emt 0:03:13]} Kh7 {[%emt 0:00:50]} 33. Qc7+ {[%emt 0:00:09]} Kg8 {[%emt 0:00:37]} 34. Qg3+ {[%emt 0:02:06]} Kf7 {[%emt 0:00:37]} 35. Qc7+ {[%emt 0:02:42]} Kg6 {[%emt 0:00:16]} 36. Qg3+ {[%emt 0:00:14]} Kf6 {[%emt 0:00:41]} 37. Qc7 {[%emt 0:00:33]} Qe2+ {[%emt 0:00:28]} 0-1

[Event "Niedersachsen Jubilaeumsturnier Open A 2"]
[Site "Wolfsburg"]
[Date "2024.11.15"]
[Round "1.25"]
[White "Shevchenko, Igor"]
[Black "Tarasenko, Nazar"]
[Result "0-1"]
[ECO "D15"]
[WhiteElo "2105"]
[BlackElo "1937"]
[Annotator "RC"]
[PlyCount "64"]
[EventDate "2024.11.15"]
[EventCountry "GER"]
[SourceTitle "playchess.com"]
[Source "ChessBase"]
[SourceQuality "1"]
[TimeControl "5400+30"]

1. d4 {[%emt 0:00:08]} d5 {[%emt 0:00:13]} 2. c4 {[%emt 0:00:30]} c6 {[%emt 0:00:05]} 3. Nc3 {[%emt 0:01:39]} Nf6 {[%emt 0:00:06]} 4. e3 {[%emt 0:01:00]} a6 {[%emt 0:01:46]} 5. Nf3 {[%emt 0:06:57]} b5 {[%emt 0:02:25]} 6. cxd5 {[%emt 0:05:13]} cxd5 {[%emt 0:00:17]} 7. Bd3 {[%emt 0:02:11]} Bg4 {[%emt 0:05:35]} 8. h3 {[%emt 0:03:41]} Bh5 {[%emt 0:01:33]} 9. g4 {[%emt 0:05:24]} Bg6 {[%emt 0:00:34]} 10. Ne5 {[%emt 0:02:13]} Bxd3 {[%emt 0:03:21]} 11. Qxd3 {[%emt 0:02:02]} e6 {[%emt 0:04:51]} 12. g5 {[%emt 0:06:23]} Nfd7 13. Nxd7 {[%emt 0:02:36]} Nxd7 {[%emt 0:02:24]} 14. Rg1 {[%emt 0:00:49]} Nb6 {[%emt 0:08:39]} 15. Rg4 {[%emt 0:08:02]} Rc8 {[%emt 0:05:22]} 16. a3 {[%emt 0:16:38]} Be7 {[%emt 0:05:34]} 17. h4 {[%emt 0:01:46]} Qd7 {[%emt 0:02:18]} 18. Rg3 {[%emt 0:03:07]} g6 {[%emt 0:03:33]} 19. e4 {[%emt 0:14:49]} dxe4 {[%emt 0:00:32]} 20. Qxe4 {[%emt 0:02:08]} Rc4 {[%emt 0:06:43]} 21. Rd3 {[%emt 0:03:58]} Nd5 {[%emt 0:03:44]} 22. Ne2 {[%emt 0:05:25]} Qc6 {[%emt 0:02:02]} 23. f3 {[%emt 0:01:36]} Bd6 {[%emt 0:01:28]} 24. Bd2 {[%emt 0:01:18]} Kd7 {[%emt 0:01:02]} 25. Kf2 {[%emt 0:02:24]} h6 {[%emt 0:00:43]} 26. Nc3 {[%emt 0:00:21]} hxg5 {[%emt 0:01:29]} 27. Nxd5 {[%emt 0:00:20]} exd5 {[%emt 0:00:51]} 28. Qg4+ {[%emt 0:00:05]} f5 {[%emt 0:00:07]} 29. Qxg5 {[%emt 0:00:13]} Be7 {[%emt 0:00:04]} 30. Qe3 {[%emt 0:01:46]} Rxh4 {[%emt 0:00:37]} 31. Re1 {[%emt 0:00:16]} Rh7 {[%emt 0:00:16]} 32. Rc3 {[%emt 0:00:58]} Bh4+ {[%emt 0:00:06]} 0-1

[Event "Niedersachsen Jubilaeumsturnier Open A 2"]
[Site "Wolfsburg"]
[Date "2024.11.16"]
[Round "2.1"]
[White "Poetsch, Hagen"]
[Black "Sreyas Payyappat"]
[Result "1/2-1/2"]
[ECO "A67"]
[WhiteElo "2502"]
[BlackElo "2084"]
[Annotator "ChessBase"]
[PlyCount "56"]
[EventDate "2024.11.15"]
[EventCountry "GER"]
[SourceTitle "playchess.com"]
[Source "ChessBase"]
[SourceQuality "1"]
[TimeControl "5400+30"]

1. d4 {[%emt 1:31:00]} Nf6 {[%emt 0:01:47]} 2. c4 {[%emt 0:00:00]} e6 {[%emt 0:00:05]} 3. Nc3 {[%emt 0:00:00]} c5 {[%emt 0:00:14]} 4. d5 {[%emt 0:00:00]} exd5 {[%emt 0:00:06]} 5. cxd5 {[%emt 0:00:00]} d6 {[%emt 0:00:08]} 6. e4 {[%emt 0:00:00]} g6 {[%emt 0:00:05]} 7. f4 {[%emt 0:00:00]} Bg7 {[%emt 0:00:06]} 8. Bb5+ {[%emt 0:00:00]} Nfd7 {[%emt 0:00:09]} 9. a4 {[%emt 0:00:00]} O-O {[%emt 0:01:09]} 10. Nf3 {[%emt 0:00:00]} Na6 {[%emt 0:00:09]} 11. O-O {[%emt 0:00:00]} Nb4 {[%emt 0:00:05]} 12. h3 {[%emt 0:00:00]} a6 {[%emt 0:02:03]} 13. Bc4 {[%emt 0:00:00]} f5 {[%emt 0:21:50]} 14. e5 {[%emt 0:00:00]} dxe5 {[%emt 0:00:18]} 15. d6+ {[%emt 0:00:00]} Kh8 {[%emt 0:00:11]} 16. Ng5 {[%emt 0:00:00]} e4 {[%emt 0:02:33]} 17. Be3 {[%emt 0:00:00]} Nb6 {[%emt 0:03:16]} 18. Nf7+ {[%emt 0:00:00]} Rxf7 {[%emt 0:00:10]} 19. Bxf7 {[%emt 0:00:00]} Nd3 {[%emt 0:01:29]} 20. a5 {[%emt 0:00:00]} Qf6 {[%emt 0:07:12]} 21. Qb3 {[%emt 0:00:00]} c4 {[%emt 0:11:37]} 22. Bxc4 {[%emt 0:00:00]} Nxc4 {[%emt 0:00:08]} 23. Qxc4 {[%emt 0:00:00]} Qxd6 {[%emt 0:00:17]} 24. Qd5 {[%emt 0:00:00]} Qxd5 {[%emt 0:12:18]} 25. Nxd5 {[%emt 0:00:00]} Rb8 {[%emt 0:03:09]} 26. Ba7 {[%emt 0:00:00]} Ra8 {[%emt 0:00:05]} 27. Be3 {[%emt 0:00:00]} Rb8 {[%emt 0:06:41]} 28. Ba7 {[%emt 0:00:00]} Ra8 {[%emt 0:00:30]} 1/2-1/2

[Event "Niedersachsen Jubilaeumsturnier Open A 2"]
[Site "Wolfsburg"]
[Date "2024.11.16"]
[Round "2.2"]
[White "Bruns, Kai-Christian"]
[Black "Bogdanov, Egor"]
[Result "0-1"]
[ECO "B52"]
[WhiteElo "2088"]
[BlackElo "2476"]
[Annotator "ChessBase"]
[PlyCount "96"]
[EventDate "2024.11.15"]
[EventCountry "GER"]
[SourceTitle "playchess.com"]
[Source "ChessBase"]
[SourceQuality "1"]
[TimeControl "5400+30"]

1. e4 {[%emt 0:00:04]} c5 {[%emt 0:00:12]} 2. Nf3 {[%emt 0:00:05]} d6 {[%emt 0:00:56]} 3. Bb5+ {[%emt 0:00:06]} Bd7 {[%emt 0:01:54]} 4. Bxd7+ {[%emt 0:00:06]} Nxd7 {[%emt 0:00:03]} 5. O-O {[%emt 0:00:18]} Ngf6 {[%emt 0:00:11]} 6. Qe2 {[%emt 0:01:11]} e6 {[%emt 0:01:16]} 7. b3 {[%emt 0:00:30]} Be7 {[%emt 0:00:35]} 8. Bb2 {[%emt 0:00:08]} O-O {[%emt 0:00:05]} 9. c4 {[%emt 0:00:36]} Qc7 {[%emt 0:03:24]} 10. Nc3 {[%emt 0:00:37]} a6 {[%emt 0:00:05]} 11. d3 {[%emt 0:02:35]} Rad8 {[%emt 0:05:19]} 12. Rae1 {[%emt 0:04:28]} Nb8 {[%emt 0:08:30]} 13. d4 {[%emt 0:09:10]} cxd4 {[%emt 0:00:30]} 14. Nxd4 {[%emt 0:00:02]} Nc6 {[%emt 0:03:03]} 15. Nxc6 {[%emt 0:03:17]} Qxc6 {[%emt 0:10:27]} 16. Kh1 {[%emt 0:09:15]} Rfe8 {[%emt 0:02:00]} 17. f4 {[%emt 0:05:01]} h6 {[%emt 0:07:45]} 18. f5 {[%emt 0:18:00]} Nd7 {[%emt 0:03:17]} 19. fxe6 {[%emt 0:09:08]} fxe6 {[%emt 0:00:10]} 20. Nd5 {[%emt 0:03:37]} Ne5 {[%emt 0:09:19]} 21. Nxe7+ {[%emt 0:01:56]} Rxe7 {[%emt 0:00:02]} 22. Bxe5 {[%emt 0:00:59]} dxe5 {[%emt 0:00:02]} 23. Rd1 {[%emt 0:02:59]} Rd4 {[%emt 0:03:41]} 24. Rde1 {[%emt 0:05:15]} Kh7 {[%emt 0:08:00]} 25. h4 {[%emt 0:01:44]} Qe8 {[%emt 0:03:44]} 26. h5 {[%emt 0:01:09]} Red7 {[%emt 0:13:19]} 27. Qg4 {[%emt 0:02:01]} Rd2 {[%emt 0:02:25]} 28. Rd1 {[%emt 0:03:16]} R2d4 {[%emt 0:06:18]} 29. Rc1 {[%emt 0:02:07]} g6 {[%emt 0:03:25]} 30. Rf6 {[%emt 0:03:10]} gxh5 {[%emt 0:00:26]} 31. Qf3 {[%emt 0:07:55]} Rd3 {[%emt 0:01:35]} 32. Qf2 {[%emt 0:00:08]} Rg7 {[%emt 0:01:23]} 33. Rf1 {[%emt 0:02:00]} Rdg3 {[%emt 0:01:19]} 34. Qd2 {[%emt 0:01:21]} R3g6 {[%emt 0:01:09]} 35. Qd6 {[%emt 0:01:28]} Qe7 {[%emt 0:01:24]} 36. Qxe5 {[%emt 0:00:32]} Rxg2 {[%emt 0:00:28]} 37. Qxh5 {[%emt 0:01:03]} Rg1+ {[%emt 0:00:38]} 38. Rxg1 {[%emt 0:00:44]} Rxg1+ {[%emt 0:00:22]} 39. Kxg1 {[%emt 0:00:03]} Qxf6 {[%emt 0:00:01]} 40. Kg2 {[%emt 0:01:25]} Qg6+ {[%emt 0:01:13]} 41. Qxg6+ {[%emt 0:00:16]} Kxg6 {[%emt 0:00:01]} 42. b4 {[%emt 0:00:00]} Kf6 {[%emt 0:00:00]} 43. c5 {[%emt 0:00:00]} Ke5 {[%emt 0:00:00]} 44. a4 {[%emt 0:00:00]} Kxe4 {[%emt 0:00:00]} 45. b5 {[%emt 0:00:00]} axb5 {[%emt 0:00:00]} 46. axb5 {[%emt 0:00:00]} Kd5 {[%emt 0:00:00]} 47. c6 {[%emt 0:00:00]} bxc6 {[%emt 0:00:00]} 48. b6 {[%emt 0:00:00]} Kd6 {[%emt 0:00:00]} 0-1

[Event "Niedersachsen Jubilaeumsturnier Open A 2"]
[Site "Wolfsburg"]
[Date "2024.11.16"]
[Round "2.4"]
[White "Jacobi, Felix-Hagen"]
[Black "Helmer, Jan"]
[Result "0-1"]
[ECO "B21"]
[WhiteElo "2063"]
[BlackElo "2226"]
[Annotator "ChessBase"]
[PlyCount "110"]
[EventDate "2024.11.15"]
[EventCountry "GER"]
[SourceTitle "playchess.com"]
[Source "ChessBase"]
[SourceQuality "1"]
[TimeControl "5400+30"]

1. e4 {[%emt 0:00:03]} c5 {[%emt 0:00:13]} 2. f4 {[%emt 0:01:22]} g6 {[%emt 0:01:57]} 3. Nf3 {[%emt 0:03:35]} Bg7 {[%emt 0:00:01]} 4. c3 {[%emt 0:04:50]} d5 {[%emt 0:00:35]} 5. Bb5+ {[%emt 0:00:38]} Bd7 {[%emt 0:01:02]} 6. Bxd7+ {[%emt 0:00:07]} Qxd7 {[%emt 0:00:20]} 7. d3 {[%emt 0:00:15]} Nc6 {[%emt 0:02:20]} 8. Qe2 {[%emt 0:08:55]} e6 {[%emt 0:05:11]} 9. O-O {[%emt 0:06:26]} Nge7 {[%emt 0:00:19]} 10. Nbd2 {[%emt 0:04:06]} b5 {[%emt 0:07:44]} 11. Qf2 {[%emt 0:25:14]} Rc8 {[%emt 0:08:03]} 12. Nb3 {[%emt 0:08:32]} c4 {[%emt 0:01:14]} 13. Nc5 {[%emt 0:03:03]} Qc7 {[%emt 0:01:16]} 14. d4 {[%emt 0:00:52]} dxe4 {[%emt 0:00:16]} 15. Nxe4 {[%emt 0:00:05]} Nd5 {[%emt 0:11:40]} 16. Ne5 {[%emt 0:00:42]} f6 {[%emt 0:02:59]} 17. Nxc6 {[%emt 0:01:23]} Qxc6 {[%emt 0:00:01]} 18. a3 {[%emt 0:00:41]} O-O {[%emt 0:01:19]} 19. Qg3 {[%emt 0:05:27]} a5 {[%emt 0:03:12]} 20. Bd2 {[%emt 0:00:12]} Rcd8 {[%emt 0:04:21]} 21. Rae1 {[%emt 0:00:45]} Rfe8 {[%emt 0:01:13]} 22. Qh4 {[%emt 0:02:54]} Qb6 {[%emt 0:11:10]} 23. Kh1 {[%emt 0:02:55]} Qb7 {[%emt 0:00:57]} 24. Rf2 {[%emt 0:01:42]} Qc6 {[%emt 0:14:58]} 25. Rfe2 {[%emt 0:02:18]} Re7 {[%emt 0:00:37]} 26. Qh3 {[%emt 0:03:02]} Rde8 {[%emt 0:00:41]} 27. Qf3 {[%emt 0:04:55]} Kh8 {[%emt 0:06:43]} 28. h3 {[%emt 0:01:43]} Nb6 {[%emt 0:04:54]} 29. Be3 {[%emt 0:00:49]} f5 {[%emt 0:02:04]} 30. Ng5 {[%emt 0:00:38]} Qxf3 {[%emt 0:00:54]} 31. Nxf3 {[%emt 0:00:05]} Nd5 {[%emt 0:00:45]} 32. Bd2 {[%emt 0:01:22]} Bf6 {[%emt 0:03:19]} 33. g4 {[%emt 0:02:18]} Kg8 {[%emt 0:00:38]} 34. Kg2 {[%emt 0:00:30]} Kf7 {[%emt 0:00:35]} 35. Kg3 {[%emt 0:00:15]} h6 {[%emt 0:00:37]} 36. g5 {[%emt 0:02:43]} hxg5 {[%emt 0:00:15]} 37. fxg5 {[%emt 0:00:02]} Bg7 {[%emt 0:00:15]} 38. Bf4 {[%emt 0:00:09]} Rb7 {[%emt 0:02:44]} 39. Be5 {[%emt 0:02:30]} Bf8 {[%emt 0:00:02]} 40. h4 {[%emt 0:00:29]} b4 {[%emt 0:00:29]} 41. axb4 {[%emt 0:00:32]} axb4 {[%emt 0:00:01]} 42. cxb4 {[%emt 0:01:08]} Rxb4 {[%emt 0:00:18]} 43. Ra1 {[%emt 0:00:00]} Rb7 {[%emt 0:00:00]} 44. Rh2 {[%emt 0:00:00]} Rc8 {[%emt 0:00:00]} 45. h5 {[%emt 0:00:00]} gxh5 {[%emt 0:00:00]} 46. Rxh5 {[%emt 0:00:00]} Kg6 {[%emt 0:00:00]} 47. Rh2 {[%emt 0:00:00]} c3 {[%emt 0:00:00]} 48. bxc3 {[%emt 0:00:00]} Rxc3 {[%emt 0:00:43]} 49. Ra8 {[%emt 0:00:00]} Rbb3 {[%emt 0:01:02]} 50. Rf2 {[%emt 0:00:00]} Be7 {[%emt 0:01:39]} 51. Rg8+ {[%emt 0:00:00]} Kf7 {[%emt 0:00:01]} 52. Rg7+ {[%emt 0:00:00]} Kf8 {[%emt 0:00:01]} 53. Rg6 {[%emt 0:00:00]} Kf7 {[%emt 0:01:20]} 54. Rg7+ {[%emt 0:00:00]} Kf8 {[%emt 0:02:38]} 55. Rg8+ {[%emt 0:00:00]} Kxg8 {[%emt 0:00:07]} 0-1

[Event "Niedersachsen Jubilaeumsturnier Open A 2"]
[Site "Wolfsburg"]
[Date "2024.11.16"]
[Round "2.5"]
[White "Riemay, David"]
[Black "Nguyen, Phuc Nhat"]
[Result "1-0"]
[ECO "C54"]
[WhiteElo "2204"]
[BlackElo "2007"]
[Annotator "ChessBase"]
[PlyCount "63"]
[EventDate "2024.11.15"]
[EventCountry "GER"]
[SourceTitle "playchess.com"]
[Source "ChessBase"]
[SourceQuality "1"]
[TimeControl "5400+30"]

1. e4 {[%emt 0:00:01]} e5 {[%emt 0:00:07]} 2. Nf3 {[%emt 0:00:04]} Nc6 {[%emt 0:00:09]} 3. Bc4 {[%emt 0:00:05]} Bc5 {[%emt 0:00:08]} 4. c3 {[%emt 0:00:19]} Nf6 {[%emt 0:00:06]} 5. d4 {[%emt 0:00:21]} exd4 {[%emt 0:00:07]} 6. b4 {[%emt 0:00:03]} Bb6 {[%emt 0:00:07]} 7. e5 {[%emt 0:00:07]} d5 {[%emt 0:00:50]} 8. exf6 {[%emt 0:00:07]} dxc4 {[%emt 0:00:06]} 9. Qe2+ {[%emt 0:00:05]} Be6 {[%emt 0:00:10]} 10. b5 {[%emt 0:00:05]} Na5 {[%emt 0:02:11]} 11. fxg7 {[%emt 0:00:58]} Rg8 {[%emt 0:00:06]} 12. cxd4 {[%emt 0:00:16]} Bxd4 {[%emt 0:31:33]} 13. Nxd4 {[%emt 0:00:11]} Qxd4 {[%emt 0:00:06]} 14. Bb2 {[%emt 0:00:19]} Qd3 {[%emt 0:05:57]} 15. Bf6 {[%emt 0:01:57]} Qxe2+ {[%emt 0:02:48]} 16. Kxe2 {[%emt 0:00:09]} c6 {[%emt 0:00:04]} 17. Rd1 {[%emt 0:00:32]} Bd5 {[%emt 0:05:51]} 18. Nc3 {[%emt 0:05:22]} Kd7 {[%emt 0:00:54]} 19. Nxd5 {[%emt 0:00:28]} cxd5 {[%emt 0:00:07]} 20. Bc3 {[%emt 0:00:15]} b6 {[%emt 0:00:13]} 21. Rxd5+ {[%emt 0:00:08]} Ke6 {[%emt 0:01:27]} 22. Rad1 {[%emt 0:04:40]} Nb7 {[%emt 0:03:24]} 23. f4 {[%emt 0:11:02]} f5 {[%emt 0:06:09]} 24. g4 {[%emt 0:00:03]} Rad8 {[%emt 0:02:23]} 25. gxf5+ {[%emt 0:02:02]} Ke7 {[%emt 0:00:17]} 26. f6+ {[%emt 0:00:29]} Kf7 {[%emt 0:00:21]} 27. Rd7+ {[%emt 0:00:14]} Ke6 {[%emt 0:00:11]} 28. f5+ {[%emt 0:02:46]} Kxf5 {[%emt 0:00:12]} 29. f7 {[%emt 0:00:07]} Rxd7 {[%emt 0:00:12]} 30. fxg8=Q {[%emt 0:00:16]} Re7+ {[%emt 0:00:22]} 31. Kf3 {[%emt 0:00:14]} Re3+ {[%emt 0:00:06]} 32. Kxe3 {[%emt 0:00:16]} 1-0

[Event "Niedersachsen Jubilaeumsturnier Open A 2"]
[Site "Wolfsburg"]
[Date "2024.11.16"]
[Round "2.6"]
[White "Kieselbach, Jannik"]
[Black "Lichtmannecker, Daniel"]
[Result "0-1"]
[ECO "B11"]
[WhiteElo "1967"]
[BlackElo "2194"]
[Annotator "ChessBase"]
[PlyCount "62"]
[EventDate "2024.11.15"]
[EventCountry "GER"]
[SourceTitle "playchess.com"]
[Source "ChessBase"]
[SourceQuality "1"]
[TimeControl "5400+30"]

1. e4 {[%emt 0:00:04]} c6 {[%emt 0:03:32]} 2. Nc3 {[%emt 0:00:41]} d5 {[%emt 0:00:13]} 3. Nf3 {[%emt 0:00:22]} Nf6 {[%emt 0:00:12]} 4. d3 {[%emt 0:02:41]} dxe4 {[%emt 0:11:38]} 5. Nxe4 {[%emt 0:08:10]} Nxe4 {[%emt 0:10:51]} 6. dxe4 {[%emt 0:00:50]} Qxd1+ {[%emt 0:00:09]} 7. Kxd1 {[%emt 0:00:16]} g6 {[%emt 0:01:37]} 8. Be3 {[%emt 0:03:27]} Bg7 {[%emt 0:02:45]} 9. Bd4 {[%emt 0:07:34]} Bxd4 {[%emt 0:16:53]} 10. Nxd4 {[%emt 0:00:10]} e5 {[%emt 0:00:03]} 11. Ne2 {[%emt 0:06:29]} Ke7 {[%emt 0:07:44]} 12. Kc1 {[%emt 0:05:11]} Nd7 {[%emt 0:02:20]} 13. b3 {[%emt 0:01:07]} Nc5 {[%emt 0:02:22]} 14. f3 {[%emt 0:04:36]} Rd8 {[%emt 0:06:04]} 15. Kb2 {[%emt 0:04:14]} Be6 {[%emt 0:05:02]} 16. Nc1 {[%emt 0:12:01]} Rd2 {[%emt 0:02:49]} 17. Rg1 {[%emt 0:32:18]} Rad8 {[%emt 0:01:04]} 18. Kc3 {[%emt 0:01:25]} Rd1 {[%emt 0:01:52]} 19. Kb2 {[%emt 0:00:56]} R8d2 {[%emt 0:09:26]} 20. Nd3 {[%emt 0:05:20]} Rxa1 {[%emt 0:01:20]} 21. Kxa1 {[%emt 0:00:23]} Rd1+ {[%emt 0:01:56]} 22. Kb2 {[%emt 0:00:08]} Nxd3+ {[%emt 0:00:05]} 23. cxd3 {[%emt 0:00:07]} Kd6 {[%emt 0:01:31]} 24. Kc3 {[%emt 0:01:14]} a5 {[%emt 0:01:27]} 25. Rh1 {[%emt 0:02:06]} Kc5 {[%emt 0:02:09]} 26. g3 {[%emt 0:00:35]} Rc1+ {[%emt 0:00:56]} 27. Kb2 {[%emt 0:00:38]} Re1 {[%emt 0:00:18]} 28. Kc3 {[%emt 0:00:30]} b5 {[%emt 0:00:49]} 29. f4 {[%emt 0:00:31]} f6 {[%emt 0:00:49]} 30. Bg2 {[%emt 0:00:37]} Re2 {[%emt 0:00:11]} 31. Bf3 {[%emt 0:00:22]} b4# {[%emt 0:07:53]} 0-1